fUSD/lending_fUSD_20250720
["ID","MTS","AMOUNT","RATE_DAILY","PERIOD"]
[373401908,1752987044228,-517.84357483,0.00019287,2]
[373401910,1752987044237,-612.12,0.00019287,2]
[373401912,1752987044247,-480.0,0.00019287,2]
[373401914,1752987044256,-810.82,0.00019287,2]
[373401916,1752987044265,-1153.09,0.00019287,2]
[373401918,1752987044275,-480.0,0.00019287,2]
[373401920,1752987044284,-480.0,0.00019287,2]
[373401922,1752987044294,-527.3,0.00019287,2]
[373401924,1752987044304,-480.0,0.00019287,2]
[373401926,1752987044314,-480.0,0.00019287,2]
[373401928,1752987044325,-1585.86,0.00019287,2]
[373401930,1752987044334,-908.89,0.00019287,2]
[373401932,1752987044344,-480.0,0.00019287,2]
[373401934,1752987044354,-480.0,0.00019287,2]
[373401936,1752987044363,-975.06,0.00019287,2]
[373401938,1752987044373,-480.0,0.00019287,2]
[373401940,1752987044382,-659.77,0.00019287,2]
[373401942,1752987044391,-500.0,0.00019287,2]
[373401944,1752987044401,-480.0,0.00019287,2]
[373401946,1752987044410,-500.0,0.00019287,2]
[373401948,1752987044419,-480.0,0.00019287,2]
[373401950,1752987044428,-682.23,0.00019287,2]
[373401952,1752987044438,-1102.0,0.00019287,2]
[373401954,1752987044448,-480.0,0.00019287,2]
[373401956,1752987044458,-160.59,0.00019287,2]
[373401958,1752987044468,-480.0,0.00019287,2]
[373401960,1752987044478,-480.0,0.00019287,2]
[373401962,1752987044487,-2029.52,0.00019287,2]
[373401965,1752987044497,-701.51,0.00019287,2]
[373401967,1752987044507,-480.0,0.00019287,2]
[373401969,1752987044516,-701.51,0.00019287,2]
[373401971,1752987044525,-925.86,0.00019287,2]
[373401973,1752987044534,-480.0,0.00019287,2]
[373401975,1752987044545,-608.49,0.00019287,2]
[373401977,1752987044556,-753.68,0.00019287,2]
[373401979,1752987044565,-496.98,0.00019287,2]
[373401981,1752987044576,-480.0,0.00019287,2]
[373401983,1752987044585,-1052.94,0.00019287,2]
[373401985,1752987044594,-500.0,0.00019287,2]
[373401987,1752987044605,-480.0,0.00019287,2]
[373401988,1752987044616,-480.0,0.00019287,2]
[373401990,1752987044626,-233.98916447,0.00019287,2]
[373401992,1752987044635,-1203.0,0.00019287,2]
[373401994,1752987044645,-1571.02,0.00019287,2]
[373401995,1752987044658,-480.0,0.00019287,2]
[373401997,1752987044668,-1066.58,0.00019287,2]
[373401999,1752987044677,-615.14,0.00019287,2]
[373402001,1752987044686,-1140.47430334,0.00019287,2]
[373402003,1752987044696,-150.0,0.00019293,2]
[373402004,1752987044706,-1565.68,0.000193,2]
[373402006,1752987044715,-1079.63557417,0.00019321,2]
[373402008,1752987044724,-150.0,0.00019322,2]
[373402010,1752987044735,-151.0,0.00019324,2]
[373402012,1752987044745,-151.0,0.00019324,2]
[373402013,1752987044754,-250.317953,0.00019324,2]
[373402015,1752987044764,-156.057459,0.00019324,2]
[373402017,1752987044773,-152.135731,0.00019324,2]
[373402019,1752987044782,-151.0,0.00019324,2]
[373402020,1752987044791,-152.878935,0.00019324,2]
[373402022,1752987044801,-151.0,0.00019324,2]
[373402024,1752987044810,-151.499889,0.00019324,2]
[373402026,1752987044819,-151.0,0.00019324,2]
[373402027,1752987044828,-151.0,0.00019324,2]
[373402029,1752987044837,-701.36,0.00019324,2]
[373402031,1752987044847,-151.0,0.00019324,2]
[373402033,1752987044857,-3352.0,0.00019324,2]
[373402035,1752987044867,-952.0,0.00019324,2]
[373402036,1752987044877,-1167.0,0.00019324,2]
[373402038,1752987044886,-889.0,0.00019324,2]
[373402040,1752987044896,-2017.0,0.00019324,2]
[373402042,1752987044906,-807.0,0.00019324,2]
[373402044,1752987044915,-961.0,0.00019324,2]
[373402045,1752987044925,-1268.0,0.00019324,2]
[373402047,1752987044934,-1687.0,0.00019324,2]
[373402049,1752987044944,-597.771,0.00019324,2]
[373402051,1752987044953,-1287.0,0.00019324,2]
[373402053,1752987044963,-562.0,0.00019324,2]
[373402054,1752987044972,-21364.0,0.00019324,2]
[373402056,1752987044982,-6050.0,0.00019324,2]
[373402058,1752987044991,-4132.901,0.00019324,2]
[373402060,1752987045001,-248.0,0.00019334,2]
[373402061,1752987045011,-193.796,0.00019334,2]
[373402063,1752987045020,-174.854,0.00019334,2]
[373402065,1752987045029,-250.0,0.00019334,2]
[373402067,1752987045039,-250.0,0.00019334,2]
[373402074,1752987045112,-500.0,0.00019373,2]
[373402076,1752987045122,-500.0,0.00019373,2]
[373402078,1752987045131,-500.0,0.00019373,2]
[373402079,1752987045141,-198.301,0.00019378,2]
[373402081,1752987045150,-220.635,0.00019378,2]
[373402083,1752987045159,-294.008,0.00019378,2]
[373402085,1752987045168,-705.09907032,0.00019383,2]
[373402087,1752987045177,-202.13,0.00019383,2]
[373402089,1752987045186,-168.0,0.00019386,2]
[373402090,1752987045195,-779.85,0.00019396,2]
[373402092,1752987045204,-516.83,0.00019396,2]
[373402094,1752987045214,-150.0,0.00019396,2]
[373402096,1752987045223,-701.36,0.00019396,2]
[373402098,1752987045232,-701.36,0.00019396,2]
[373402100,1752987045241,-122149.07188181,0.00019397,2]
[373402101,1752987045250,-1741.44030208,0.00019397,2]
[373402104,1752987045260,-229329.39148061,0.00019397,2]
[373402107,1752987045269,-480.0,0.00019397,2]
[373402109,1752987045278,-948.8,0.00019397,2]
[373402111,1752987045287,-268.56,0.00019397,2]
[373402113,1752987045297,-1000.0,0.00019397,2]
[373402115,1752987045308,-457.99,0.00019397,2]
[373402117,1752987045318,-480.0,0.00019397,2]
[373402119,1752987045328,-500.0,0.00019397,2]
[373402121,1752987045337,-480.0,0.00019397,2]
[373402123,1752987045346,-480.0,0.00019397,2]
[373402125,1752987045356,-151.0,0.00019397,2]
[373402127,1752987045365,-480.0,0.00019397,2]
[373402128,1752987045374,-480.0,0.00019397,2]
[373402130,1752987045383,-151.0,0.00019397,2]
[373402132,1752987045392,-151.0,0.00019397,2]
[373402134,1752987045402,-480.0,0.00019397,2]
[373402136,1752987045411,-480.0,0.00019397,2]
[373402138,1752987045421,-480.0,0.00019397,2]
[373402140,1752987045430,-480.0,0.00019397,2]
[373402142,1752987045439,-480.0,0.00019397,2]
[373402144,1752987045448,-151.0,0.00019397,2]
[373402146,1752987045457,-151.0,0.00019397,2]
[373402148,1752987045466,-151.0,0.00019397,2]
[373402150,1752987045475,-480.0,0.00019397,2]
[373402152,1752987045484,-151.0,0.00019397,2]
[373402153,1752987045493,-151.0,0.00019397,2]
[373402155,1752987045502,-480.0,0.00019397,2]
[373402157,1752987045511,-480.0,0.00019397,2]
[373402159,1752987045520,-480.0,0.00019397,2]
[373402161,1752987045529,-151.0,0.00019397,2]
[373402163,1752987045539,-151.0,0.00019397,2]
[373402164,1752987045548,-151.0,0.00019397,2]
[373402166,1752987045558,-480.0,0.00019397,2]
[373402168,1752987045567,-500.62334633,0.00019397,2]
[373402170,1752987045576,-480.0,0.00019397,2]
[373402172,1752987045585,-480.0,0.00019397,2]
[373402174,1752987045595,-480.0,0.00019397,2]
[373402176,1752987045604,-151.0,0.00019397,2]
[373402177,1752987045613,-151.0,0.00019397,2]
[373402179,1752987045622,-151.0,0.00019397,2]
[373402181,1752987045631,-151.0,0.00019397,2]
[373402183,1752987045640,-203.439184,0.00019397,2]
[373402185,1752987045649,-480.0,0.00019397,2]
[373402187,1752987045663,-151.0,0.00019397,2]
[373402189,1752987045672,-151.0,0.00019397,2]
[373402190,1752987045682,-480.0,0.00019397,2]
[373402192,1752987045691,-480.0,0.00019397,2]
[373402194,1752987045701,-4893.14,0.00019397,2]
[373402196,1752987045710,-480.0,0.00019397,2]
[373402198,1752987045719,-151.0,0.00019397,2]
[373402200,1752987045729,-151.0,0.00019397,2]
[373402202,1752987045738,-671.09,0.00019397,2]
[373402204,1752987045748,-151.0,0.00019397,2]
[373402206,1752987045757,-151.0,0.00019397,2]
[373402207,1752987045766,-480.0,0.00019397,2]
[373402209,1752987045775,-480.0,0.00019397,2]
[373402211,1752987045785,-480.0,0.00019397,2]
[373402213,1752987045794,-480.0,0.00019397,2]
[373402215,1752987045803,-490.55,0.00019397,2]
[373402217,1752987045812,-480.0,0.00019397,2]
[373402218,1752987045821,-151.0,0.00019397,2]
[373402220,1752987045830,-943.26,0.00019397,2]
[373402222,1752987045840,-480.0,0.00019397,2]
[373402224,1752987045849,-611.58,0.00019397,2]
[373402226,1752987045858,-480.0,0.00019397,2]
[373402228,1752987045867,-480.0,0.00019397,2]
[373402229,1752987045876,-480.0,0.00019397,2]
[373402231,1752987045886,-658.02,0.00019397,2]
[373402232,1752987045895,-480.0,0.00019397,2]
[373402233,1752987045904,-151.0,0.00019397,2]
[373402234,1752987045913,-151.0,0.00019397,2]
[373402235,1752987045923,-480.0,0.00019397,2]
[373402236,1752987045931,-480.0,0.00019397,2]
[373402237,1752987045941,-480.0,0.00019397,2]
[373402238,1752987045950,-771.89,0.00019397,2]
[373402239,1752987045959,-571.58,0.00019397,2]
[373402240,1752987045968,-480.0,0.00019397,2]
[373402241,1752987045978,-480.0,0.00019397,2]
[373402242,1752987045987,-480.0,0.00019397,2]
[373402243,1752987045996,-480.0,0.00019397,2]
[373402244,1752987046005,-480.0,0.00019397,2]
[373402246,1752987046015,-532.4,0.00019397,2]
[373402247,1752987046024,-503.32763188,0.00019397,2]
[373402249,1752987046033,-480.0,0.00019397,2]
[373402251,1752987046042,-524.55,0.00019397,2]
[373402253,1752987046051,-510.02,0.00019397,2]
[373402255,1752987046061,-480.0,0.00019397,2]
[373402257,1752987046070,-480.0,0.00019397,2]
[373402259,1752987046079,-720.94,0.00019397,2]
[373402261,1752987046088,-152.619995,0.00019397,2]
[373402263,1752987046097,-151.0,0.00019397,2]
[373402265,1752987046107,-480.0,0.00019397,2]
[373402267,1752987046116,-520.0,0.00019397,2]
[373402269,1752987046125,-480.0,0.00019397,2]
[373402271,1752987046134,-480.0,0.00019397,2]
[373402274,1752987046143,-151.0,0.00019397,2]
[373402276,1752987046152,-151.0,0.00019397,2]
[373402278,1752987046161,-480.0,0.00019397,2]
[373402279,1752987046170,-480.0,0.00019397,2]
[373402281,1752987046179,-480.0,0.00019397,2]
[373402283,1752987046188,-647.64,0.00019397,2]
[373402285,1752987046197,-480.0,0.00019397,2]
[373402287,1752987046206,-480.0,0.00019397,2]
[373402289,1752987046215,-262.33754904,0.00019397,2]
[373402291,1752987046225,-155.816393,0.00019397,2]
[373402293,1752987046234,-480.0,0.00019397,2]
[373402296,1752987046243,-480.0,0.00019397,2]
[373402297,1752987046252,-3318.41,0.00019397,2]
[373402299,1752987046261,-151.0,0.00019397,2]
[373402301,1752987046270,-480.0,0.00019397,2]
[373402303,1752987046281,-480.0,0.00019397,2]
[373402305,1752987046290,-480.0,0.00019397,2]
[373402308,1752987046299,-480.0,0.00019397,2]
[373402309,1752987046310,-480.0,0.00019397,2]
[373402311,1752987046319,-480.0,0.00019397,2]
[373402313,1752987046328,-480.0,0.00019397,2]
[373402315,1752987046337,-480.0,0.00019397,2]
[373402317,1752987046347,-480.0,0.00019397,2]
[373402319,1752987046356,-480.0,0.00019397,2]
[373402321,1752987046365,-480.0,0.00019397,2]
[373402323,1752987046374,-480.0,0.00019397,2]
[373402325,1752987046383,-480.0,0.00019397,2]
[373402327,1752987046393,-555.53789721,0.00019397,2]
[373402329,1752987046402,-480.0,0.00019397,2]
[373402331,1752987046411,-514.72,0.00019397,2]
[373402333,1752987046420,-2448.11,0.00019397,2]
[373402335,1752987046429,-480.0,0.00019397,2]
[373402337,1752987046439,-480.0,0.00019397,2]
[373402339,1752987046448,-151.0,0.00019397,2]
[373402341,1752987046458,-151.0,0.00019397,2]
[373402343,1752987046467,-480.0,0.00019397,2]
[373402345,1752987046476,-480.0,0.00019397,2]
[373402347,1752987046486,-480.0,0.00019397,2]
[373402349,1752987046495,-480.0,0.00019397,2]
[373402351,1752987046504,-1010.43,0.00019397,2]
[373402353,1752987046513,-968.32,0.00019397,2]
[373402355,1752987046523,-480.0,0.00019397,2]
[373402357,1752987046532,-763.93,0.00019397,2]
[373402359,1752987046542,-480.0,0.00019397,2]
[373402361,1752987046551,-480.0,0.00019397,2]
[373402363,1752987046564,-1000.0,0.00019397,2]
[373402365,1752987046573,-480.0,0.00019397,2]
[373402367,1752987046583,-480.0,0.00019397,2]
[373402369,1752987046591,-480.0,0.00019397,2]
[373402371,1752987046601,-480.0,0.00019397,2]
[373402373,1752987046611,-480.0,0.00019397,2]
[373402375,1752987046620,-151.0,0.00019397,2]
[373402377,1752987046629,-151.0,0.00019397,2]
[373402379,1752987046638,-480.0,0.00019397,2]
[373402381,1752987046648,-819.91,0.00019397,2]
[373402383,1752987046661,-151.0,0.00019397,2]
[373402385,1752987046670,-151.0,0.00019397,2]
[373402387,1752987046679,-602.19,0.00019397,2]
[373402389,1752987046691,-151.0,0.00019397,2]
[373402391,1752987046700,-151.0,0.00019397,2]
[373402393,1752987046709,-480.0,0.00019397,2]
[373402395,1752987046717,-151.0,0.00019397,2]
[373402397,1752987046728,-151.0,0.00019397,2]
[373402400,1752987046738,-152.292616,0.00019397,2]
[373402402,1752987046749,-480.0,0.00019397,2]
[373402404,1752987046759,-480.0,0.00019397,2]
[373402406,1752987046768,-480.0,0.00019397,2]
[373402408,1752987046778,-697.94,0.00019397,2]
[373402410,1752987046788,-480.0,0.00019397,2]
[373402412,1752987046798,-480.0,0.00019397,2]
[373402414,1752987046809,-672.21,0.00019397,2]
[373402416,1752987046818,-480.0,0.00019397,2]
[373402418,1752987046827,-151.0,0.00019397,2]
[373402420,1752987046836,-151.0,0.00019397,2]
[373402422,1752987046845,-1381.17,0.00019397,2]
[373402424,1752987046855,-480.0,0.00019397,2]
[373402426,1752987046864,-480.0,0.00019397,2]
[373402428,1752987046873,-480.0,0.00019397,2]
[373402430,1752987046883,-503.27873434,0.00019397,2]
[373402432,1752987046892,-616.18,0.00019397,2]
[373402434,1752987046902,-480.0,0.00019397,2]
[373402436,1752987046911,-1397.15,0.00019397,2]
[373402438,1752987046920,-480.0,0.00019397,2]
[373402440,1752987046930,-581.27,0.00019397,2]
[373402442,1752987046939,-480.0,0.00019397,2]
[373402444,1752987046948,-480.0,0.00019397,2]
[373402446,1752987046958,-480.0,0.00019397,2]
[373402448,1752987046967,-531.02,0.00019397,2]
[373402450,1752987046976,-480.0,0.00019397,2]
[373402452,1752987046985,-471.99326139,0.00019397,2]
[373402454,1752987046994,-480.0,0.00019397,2]
[373402456,1752987047003,-480.0,0.00019397,2]
[373402458,1752987047013,-1011.55,0.00019397,2]
[373402460,1752987047022,-480.0,0.00019397,2]
[373402462,1752987047032,-771.88,0.00019397,2]
[373402464,1752987047041,-480.0,0.00019397,2]
[373402466,1752987047050,-480.0,0.00019397,2]
[373402467,1752987047060,-480.0,0.00019397,2]
[373402470,1752987047069,-151.0,0.00019397,2]
[373402472,1752987047079,-151.0,0.00019397,2]
[373402473,1752987047087,-480.0,0.00019397,2]
[373402475,1752987047097,-480.0,0.00019397,2]
[373402478,1752987047106,-542.35,0.00019397,2]
[373402479,1752987047115,-620.67,0.00019397,2]
[373402481,1752987047125,-496.47,0.00019397,2]
[373402483,1752987047134,-543.08,0.00019397,2]
[373402485,1752987047143,-673.87,0.00019397,2]
[373402487,1752987047156,-480.0,0.00019397,2]
[373402489,1752987047165,-480.0,0.00019397,2]
[373402491,1752987047175,-480.0,0.00019397,2]
[373402493,1752987047183,-480.0,0.00019397,2]
[373402495,1752987047193,-488.83,0.00019397,2]
[373402497,1752987047202,-357.08485601,0.00019397,2]
[373402499,1752987047212,-151.0,0.00019397,2]
[373402501,1752987047221,-151.0,0.00019397,2]
[373402503,1752987047231,-480.0,0.00019397,2]
[373402505,1752987047240,-1289.07,0.00019397,2]
[373402507,1752987047249,-480.0,0.00019397,2]
[373402509,1752987047258,-480.0,0.00019397,2]
[373402511,1752987047267,-480.0,0.00019397,2]
[373402513,1752987047276,-480.0,0.00019397,2]
[373402515,1752987047285,-480.0,0.00019397,2]
[373402517,1752987047294,-480.0,0.00019397,2]
[373402519,1752987047305,-531.43,0.00019397,2]
[373402521,1752987047314,-803.05,0.00019397,2]
[373402523,1752987047323,-480.0,0.00019397,2]
[373402525,1752987047332,-815.18,0.00019397,2]
[373402527,1752987047341,-480.0,0.00019397,2]
[373402529,1752987047351,-480.0,0.00019397,2]
[373402531,1752987047360,-480.0,0.00019397,2]
[373402533,1752987047369,-480.0,0.00019397,2]
[373402535,1752987047378,-480.0,0.00019397,2]
[373402537,1752987047388,-480.0,0.00019397,2]
[373402540,1752987047397,-480.0,0.00019397,2]
[373402541,1752987047406,-480.0,0.00019397,2]
[373402543,1752987047415,-191.67533886,0.00019397,2]
[373402545,1752987047424,-487.93356306,0.00019397,2]
[373402548,1752987047433,-480.0,0.00019397,2]
[373402550,1752987047443,-480.0,0.00019397,2]
[373402552,1752987047452,-480.0,0.00019397,2]
[373402554,1752987047461,-151.0,0.00019397,2]
[373402556,1752987047470,-151.0,0.00019397,2]
[373402558,1752987047480,-480.0,0.00019397,2]
[373402560,1752987047489,-517.08,0.00019397,2]
[373402562,1752987047498,-480.0,0.00019397,2]
[373402564,1752987047508,-151.0,0.00019397,2]
[373402566,1752987047518,-5646.35,0.00019397,2]
[373402568,1752987047527,-200.970758,0.00019397,2]
[373402570,1752987047539,-313.915059,0.00019397,2]
[373402572,1752987047547,-313.915059,0.00019397,2]
[373402574,1752987047556,-480.0,0.00019397,2]
[373402576,1752987047565,-480.0,0.00019397,2]
[373402578,1752987047575,-480.0,0.00019397,2]
[373402580,1752987047584,-313.915059,0.00019397,2]
[373402582,1752987047593,-313.915059,0.00019397,2]
[373402584,1752987047603,-480.0,0.00019397,2]
[373402586,1752987047612,-151.0,0.00019397,2]
[373402588,1752987047621,-151.0,0.00019397,2]
[373402590,1752987047630,-151.0,0.00019397,2]
[373402592,1752987047639,-480.0,0.00019397,2]
[373402594,1752987047648,-151.0,0.00019397,2]
[373402596,1752987047661,-480.0,0.00019397,2]
[373402598,1752987047670,-480.0,0.00019397,2]
[373402600,1752987047680,-1432.25,0.00019397,2]
[373402602,1752987047689,-480.0,0.00019397,2]
[373402604,1752987047698,-480.0,0.00019397,2]
[373402606,1752987047707,-480.0,0.00019397,2]
[373402608,1752987047717,-544.27,0.00019397,2]
[373402610,1752987047726,-581.6,0.00019397,2]
[373402612,1752987047735,-151.0,0.00019397,2]
[373402614,1752987047745,-192.145489,0.00019397,2]
[373402616,1752987047755,-535.04,0.00019397,2]
[373402618,1752987047764,-480.0,0.00019397,2]
[373402620,1752987047773,-480.0,0.00019397,2]
[373402622,1752987047782,-524.48,0.00019397,2]
[373402624,1752987047791,-480.0,0.00019397,2]
[373402626,1752987047800,-388.91074995,0.00019397,2]
[373402628,1752987047810,-360.82231745,0.00019397,2]
[373402630,1752987047820,-606.02,0.00019397,2]
[373402632,1752987047830,-577.97,0.00019397,2]
[373402634,1752987047839,-480.0,0.00019397,2]
[373402636,1752987047849,-480.0,0.00019397,2]
[373402638,1752987047858,-2627.31,0.00019397,2]
[373402640,1752987047868,-284.17708101,0.00019397,2]
[373402642,1752987047878,-480.0,0.00019397,2]
[373402644,1752987047888,-480.0,0.00019397,2]
[373402646,1752987047897,-480.0,0.00019397,2]
[373402648,1752987047907,-480.0,0.00019397,2]
[373402650,1752987047916,-480.0,0.00019397,2]
[373402652,1752987047926,-774.04,0.00019397,2]
[373402654,1752987047935,-480.0,0.00019397,2]
[373402656,1752987047945,-151.0,0.00019397,2]
[373402658,1752987047954,-151.0,0.00019397,2]
[373402660,1752987047964,-559.32,0.00019397,2]
[373402662,1752987047974,-1028.05,0.00019397,2]
[373402664,1752987047983,-480.0,0.00019397,2]
[373402667,1752987047993,-480.0,0.00019397,2]
[373402669,1752987048003,-386.1735244,0.00019397,2]
[373402670,1752987048012,-480.0,0.00019397,2]
[373402672,1752987048022,-480.0,0.00019397,2]
[373402674,1752987048032,-574.47,0.00019397,2]
[373402676,1752987048042,-480.0,0.00019397,2]
[373402678,1752987048051,-1473.16,0.00019397,2]
[373402680,1752987048061,-480.0,0.00019397,2]
[373402682,1752987048071,-151.0,0.00019397,2]
[373402684,1752987048081,-151.0,0.00019397,2]
[373402687,1752987048091,-1267.98,0.00019397,2]
[373402689,1752987048100,-480.0,0.00019397,2]
[373402691,1752987048110,-480.0,0.00019397,2]
[373402692,1752987048121,-480.0,0.00019397,2]
[373402694,1752987048131,-1718.81,0.00019397,2]
[373402697,1752987048140,-480.0,0.00019397,2]
[373402699,1752987048150,-151.0,0.00019397,2]
[373402701,1752987048160,-151.0,0.00019397,2]
[373402703,1752987048169,-480.0,0.00019397,2]
[373402705,1752987048179,-480.0,0.00019397,2]
[373402707,1752987048189,-480.0,0.00019397,2]
[373402709,1752987048198,-480.0,0.00019397,2]
[373402711,1752987048207,-179.931965,0.00019397,2]
[373402713,1752987048216,-541.3,0.00019397,2]
[373402715,1752987048225,-1164.66,0.00019397,2]
[373402717,1752987048234,-1820.23,0.00019397,2]
[373402719,1752987048244,-480.0,0.00019397,2]
[373402721,1752987048253,-480.0,0.00019397,2]
[373402723,1752987048263,-480.0,0.00019397,2]
[373402725,1752987048272,-480.0,0.00019397,2]
[373402727,1752987048282,-480.0,0.00019397,2]
[373402729,1752987048291,-480.0,0.00019397,2]
[373402731,1752987048301,-480.0,0.00019397,2]
[373402733,1752987048312,-480.0,0.00019397,2]
[373402735,1752987048322,-480.0,0.00019397,2]
[373402737,1752987048331,-480.0,0.00019397,2]
[373402739,1752987048341,-2127.88,0.00019397,2]
[373402741,1752987048350,-734.45,0.00019397,2]
[373402743,1752987048360,-877.05,0.00019397,2]
[373402745,1752987048369,-1166.49,0.00019397,2]
[373402747,1752987048379,-941.41,0.00019397,2]
[373402749,1752987048388,-515.04,0.00019397,2]
[373402751,1752987048398,-1199.05,0.00019397,2]
[373402753,1752987048407,-204.267673,0.00019397,2]
[373402755,1752987048417,-480.0,0.00019397,2]
[373402757,1752987048427,-151.0,0.00019397,2]
[373402759,1752987048437,-151.0,0.00019397,2]
[373402761,1752987048446,-698.36,0.00019397,2]
[373402763,1752987048456,-480.0,0.00019397,2]
[373402765,1752987048466,-480.0,0.00019397,2]
[373402768,1752987048480,-1261.78664693,0.00019397,2]
[373402806,1752987048927,-593.41335307,0.00019397,2]
[373402808,1752987048937,-1397.04446675,0.00019397,2]
[373402810,1752987048954,-31.46553325,0.00019397,2]
[373402813,1752987048964,-730.01,0.00019397,2]
[373402815,1752987048974,-117.46635402,0.00019397,2]
[373402817,1752987048986,-462.82364598,0.00019397,2]
[373402819,1752987048996,-480.0,0.00019397,2]
[373402821,1752987049006,-980.37,0.00019397,2]
[373402823,1752987049016,-100.94800761,0.00019397,2]
[373402825,1752987049029,-2075.16199239,0.00019397,2]
[373402827,1752987049039,-480.0,0.00019397,2]
[373402830,1752987049049,-671.85,0.00019397,2]
[373402832,1752987049060,-410.41816657,0.00019397,2]
[373402967,1752987050366,-690.18,0.00019178,2]
[373402969,1752987050376,-5.83933915,0.00019287,2]
[373402971,1752987050388,-625.57066085,0.00019287,2]
[373403018,1752987050853,-58.77,0.00019287,2]
[373403020,1752987050862,-370.26845596,0.00019324,2]
[373403022,1752987050873,-491.73154404,0.00019324,2]
[373403024,1752987050883,-3308.35183343,0.00019397,2]
[373403026,1752987050892,-678.13,0.00019397,2]
[373403028,1752987050901,-305.00106138,0.00019397,2]
[373403031,1752987050912,-590.1,0.00019397,2]
[373403060,1752987051200,-480.0,0.00019178,2]
[373403062,1752987051209,-480.0,0.00019287,2]
[373403064,1752987051218,-151.31893862,0.00019397,2]
[373403066,1752987051227,-799.25,0.00019397,2]
[373403068,1752987051236,-480.0,0.00019397,2]
[373403070,1752987051246,-628.46,0.00019397,2]
[373403072,1752987051255,-480.0,0.00019397,2]
[373403074,1752987051264,-970.35,0.00019397,2]
[373403076,1752987051274,-591.1,0.00019397,2]
[373403078,1752987051283,-2666.66,0.00019397,2]
[373403080,1752987051292,-480.0,0.00019397,2]
[373403082,1752987051302,-618.53,0.00019397,2]
[373403083,1752987051311,-2252.47,0.00019397,2]
[373403084,1752987051320,-480.0,0.00019397,2]
[373403085,1752987051329,-480.0,0.00019397,2]
[373403086,1752987051338,-480.0,0.00019397,2]
[373403087,1752987051347,-676.25,0.00019397,2]
[373403088,1752987051356,-666.37,0.00019397,2]
[373403089,1752987051366,-480.0,0.00019397,2]
[373403090,1752987051375,-480.0,0.00019397,2]
[373403091,1752987051384,-1194.61,0.00019397,2]
[373403092,1752987051393,-480.0,0.00019397,2]
[373403093,1752987051402,-493.06,0.00019397,2]
[373403094,1752987051411,-4262.81,0.00019397,2]
[373403095,1752987051421,-751.35470132,0.00019397,2]
[373403097,1752987051437,-1496.10529868,0.00019397,2]
[373403099,1752987051446,-589.6,0.00019397,2]
[373403101,1752987051455,-480.0,0.00019397,2]
[373403103,1752987051465,-480.0,0.00019397,2]
[373403105,1752987051476,-1030.94,0.00019397,2]
[373403107,1752987051485,-485.93,0.00019397,2]
[373403109,1752987051494,-1853.45914692,0.00019397,2]
[373403112,1752987051510,-77.88478708,0.00019397,2]
[373403114,1752987051520,-480.0,0.00019397,2]